bitfinex-derivatives/quotes_BTCF0:USTF0_20251225
["timestamp","ask_amount","ask_price","bid_price","bid_amount"]
[1766703588630,0.00017102,87698.0,87683.0,0.0114126]
[1766703589636,0.0114097,87706.0,87683.0,0.0114126]
[1766703589834,0.05748,87705.0,87680.0,0.011413]
[1766703590337,0.01141,87704.0,87678.0,0.000114]
[1766703590635,0.00017102,87700.0,87678.0,0.000114]
[1766703591237,0.00017102,87700.0,87680.0,0.011413]
[1766703591734,0.00017102,87700.0,87678.0,0.000114]
[1766703593040,0.24256,87727.0,87690.0,0.0114117]
[1766703593041,0.00228018,87713.0,87690.0,0.0114117]
[1766703593235,0.00228018,87713.0,87678.0,0.030114]
[1766703593236,0.00228018,87713.0,87692.0,0.0114115]
[1766703593536,0.00228018,87713.0,87694.0,0.0114112]
[1766703593923,0.00017102,87712.0,87695.0,0.00017102]
[1766703594137,0.00017102,87712.0,87696.0,0.0114109]
[1766703594439,0.00017102,87712.0,87695.0,0.00017102]
[1766703594837,0.00017102,87712.0,87696.0,0.0114109]
[1766703596331,0.00017102,87712.0,87695.0,0.00017102]
[1766703596539,0.0114075,87723.0,87702.0,0.0114101]
[1766703596840,0.0114074,87724.0,87703.0,0.15448]
[1766703597038,0.0114074,87724.0,87704.0,0.15448]
[1766703597341,0.05748,87729.0,87705.0,0.097]
[1766703597543,0.011408,87720.0,87705.0,0.097]
[1766703597736,0.011408,87720.0,87699.0,0.0114105]
[1766703597940,0.0114083,87717.0,87700.0,0.15448]
[1766703598141,0.0114089,87712.0,87691.0,0.0114115]
[1766703598643,0.0114089,87712.0,87693.0,0.0114113]
[1766703599045,0.00017102,87711.0,87694.0,0.00017102]
[1766703599450,0.00017102,87711.0,87697.0,0.0114107]
[1766703600336,0.00017102,87711.0,87694.0,0.00017102]
[1766703600736,0.0608775,87732.0,87694.0,0.00017102]
[1766703600939,0.0114084,87716.0,87695.0,0.068851]
[1766703601139,0.0114082,87718.0,87697.0,0.0114107]
[1766703601441,0.0114082,87718.0,87694.0,0.00017102]
[1766703601442,0.0114092,87710.0,87694.0,0.00017102]
[1766703601644,0.0114092,87710.0,87688.0,0.097]
[1766703601645,0.0114102,87703.0,87688.0,0.097]
[1766703601947,0.0114097,87706.0,87685.0,0.0114123]
[1766703602134,0.14875753,87720.0,87679.0,0.097]
[1766703602135,0.01141,87704.0,87681.0,0.0114128]
[1766703602332,0.16585,87704.0,87686.0,0.00741]
[1766703602533,0.0114103,87701.0,87680.0,0.011413]
[1766703602846,0.0114103,87701.0,87674.0,0.097]
[1766703602847,0.0114107,87698.0,87682.0,0.00017102]
[1766703603243,0.00017102,87699.0,87682.0,0.00017102]
[1766703604650,0.00017102,87699.0,87682.0,0.01141372]
[1766703605447,0.0114111,87695.0,87682.0,1.02e-06]
[1766703605851,0.15444,87694.0,87666.0,0.0114148]
[1766703606051,0.13734973,87690.0,87665.0,0.0001112]
[1766703606234,0.0114128,87682.0,87665.0,0.0001112]
[1766703606435,0.0114128,87682.0,87655.0,0.04093579]
[1766703606436,0.14876283,87680.0,87652.0,0.04093579]
[1766703606735,0.13734973,87670.0,87640.0,0.097]
[1766703606940,0.0608775,87684.0,87646.0,0.00017112]
[1766703607134,0.097,87695.0,87659.0,0.0114158]
[1766703607340,0.097,87695.0,87675.0,0.0114136]
[1766703607535,0.097,87695.0,87660.0,0.29178973]
[1766703607536,0.00012301,87694.0,87678.0,0.0114133]
[1766703607737,0.00012301,87694.0,87681.0,0.0114129]
[1766703607940,0.00017112,87696.0,87684.0,0.0114125]
[1766703608144,0.011409,87712.0,87685.0,0.15444]
[1766703608345,0.0114097,87706.0,87685.0,0.15444]
[1766703609056,0.00017112,87704.0,87687.0,0.00017112]
[1766703609654,0.0114105,87700.0,87687.0,0.00017112]
[1766703609856,0.0114108,87698.0,87687.0,0.00017112]
[1766703610045,0.00017112,87704.0,87687.0,2e-08]
[1766703610650,0.13734973,87720.0,87687.0,2e-08]
[1766703610651,0.0114088,87713.0,87687.0,2e-08]
[1766703610868,0.0114092,87710.0,87688.0,0.0114119]
[1766703611553,0.00017112,87708.0,87688.0,0.0114119]
[1766703612153,0.00017112,87708.0,87689.0,0.05748]
[1766703612756,0.00017112,87708.0,87690.0,0.0114116]
[1766703613650,0.00017112,87708.0,87693.0,0.0114113]
[1766703613850,0.00017112,87708.0,87689.0,0.0688918]
[1766703614051,0.00017112,87708.0,87692.0,0.0114115]
[1766703615257,0.00017112,87708.0,87696.0,0.011411]
[1766703615460,0.0608775,87742.0,87696.0,0.097]
[1766703615658,0.0114048,87744.0,87698.0,0.04093579]
[1766703615850,0.15444,87743.0,87717.0,0.0114081]
[1766703616156,0.15444,87742.0,87717.0,0.0114081]
[1766703616352,0.00017102,87738.0,87721.0,0.00017102]
[1766703616558,0.0114057,87737.0,87721.0,0.00017102]
[1766703616767,0.097,87736.0,87721.0,0.00017102]
[1766703617253,0.097,87736.0,87712.0,0.00929886]
[1766703618262,0.097,87736.0,87715.0,0.00017102]
[1766703618645,0.097,87736.0,87715.0,0.01157952]
[1766703618851,0.097,87735.0,87715.0,0.01157952]
[1766703619349,0.00017102,87738.0,87715.0,0.01157952]
[1766703619548,0.15172,87737.0,87715.0,0.00017102]
[1766703619748,0.05744,87737.0,87715.0,0.00017102]
[1766703619961,0.097,87736.0,87715.0,0.00017102]
[1766703620161,0.097,87736.0,87716.0,0.0114084]
[1766703622060,0.15444,87735.0,87715.0,0.00017102]
[1766703622852,0.15444,87735.0,87715.0,2e-08]
[1766703623050,0.0114078,87721.0,87705.0,0.05744]
[1766703623247,0.05744,87724.0,87696.0,0.097]
[1766703623559,0.0114086,87714.0,87691.0,0.05744]
[1766703623855,0.0688486,87714.0,87692.0,0.05744]
[1766703624161,0.00017102,87712.0,87694.0,0.00017102]
[1766703624456,0.0114094,87709.0,87694.0,0.00017102]
[1766703624863,0.00017102,87712.0,87694.0,0.00017102]
[1766703625053,0.0114098,87706.0,87694.0,0.00017102]
[1766703625253,0.01141,87704.0,87694.0,0.00017102]
[1766703625450,0.0114103,87702.0,87683.0,0.097]
[1766703625850,0.0114106,87699.0,87683.0,0.097]
[1766703626850,0.0114106,87699.0,87682.0,0.00017102]
[1766703627047,0.011411,87696.0,87682.0,0.00017102]
[1766703627865,0.097,87703.0,87679.0,0.05744]
[1766703628060,0.097,87703.0,87675.0,0.097]
[1766703628767,0.011412,87689.0,87673.0,0.0114]
[1766703628969,0.165852,87689.0,87680.0,0.00011433]
[1766703629155,0.165852,87689.0,87673.0,0.0114]
[1766703629659,0.165852,87689.0,87669.0,0.0114144]
[1766703629972,0.0114122,87687.0,87666.0,0.05744]
[1766703630157,0.0114125,87684.0,87664.0,0.0114151]
[1766703630461,0.15444,87689.0,87660.0,0.0114156]
[1766703630763,0.15444,87689.0,87660.0,0.0688556]
[1766703631265,0.0114138,87675.0,87660.0,0.05744]
[1766703632556,0.05744,87678.0,87648.0,0.04093579]
[1766703632557,0.05744,87678.0,87654.0,0.0114]
[1766703632866,0.00017102,87675.0,87654.0,0.0114]
[1766703633372,0.0114144,87670.0,87654.0,0.0114]
[1766703634268,0.15444,87669.0,87643.0,0.097]
[1766703634565,0.05744,87668.0,87640.0,0.05744]
[1766703634867,0.05744,87667.0,87640.0,0.05744]
[1766703635563,0.05744,87668.0,87640.0,0.05744]
[1766703636469,0.05744,87668.0,87641.0,0.0114181]
[1766703636470,0.0114148,87667.0,87641.0,0.0114181]
[1766703637066,0.01764,87666.0,87641.0,0.0114181]
[1766703637256,0.11464,87666.0,87641.0,0.0114181]
[1766703638063,0.05744,87665.0,87641.0,0.0114181]
[1766703638462,0.0114152,87664.0,87641.0,0.0114181]
[1766703639480,0.0114156,87661.0,87640.0,0.05744]
[1766703639677,0.05744,87665.0,87640.0,0.05744]
[1766703639678,0.0114159,87659.0,87640.0,0.05744]
[1766703639970,0.0114163,87656.0,87640.0,0.05744]
[1766703640884,0.0114167,87652.0,87640.0,0.05744]
[1766703641069,0.0114163,87655.0,87640.0,0.05744]
[1766703642572,0.0114163,87655.0,87636.0,0.0114188]
[1766703644468,0.0114163,87655.0,87635.0,0.05748]
[1766703644469,0.0114172,87649.0,87633.0,8.708e-05]
[1766703644770,0.0114172,87649.0,87629.0,0.0114196]
[1766703644966,0.0114174,87647.0,87626.0,0.0689]
[1766703645171,0.15452,87646.0,87626.0,0.0689]
[1766703645371,0.15452,87646.0,87630.0,0.0114196]
[1766703645574,0.09704,87653.0,87639.0,0.0114183]
[1766703645775,0.05748,87652.0,87636.0,0.0114187]
[1766703646278,0.00017112,87657.0,87635.0,0.05748]
[1766703646464,0.00017112,87657.0,87646.0,0.0114174]
[1766703646666,0.01736,87662.0,87646.0,0.0114174]
[1766703646868,0.0114149,87666.0,87643.0,0.0114178]
[1766703647073,0.0114127,87683.0,87643.0,0.0114178]
[1766703647074,0.05748,87663.0,87643.0,0.0114178]
[1766703647268,0.15452,87663.0,87643.0,0.0114178]
[1766703647464,0.0114154,87662.0,87643.0,0.0114178]
[1766703647667,0.15452,87663.0,87636.0,0.09704]
[1766703647668,0.0114157,87660.0,87644.0,0.00017112]
[1766703648278,0.011416,87658.0,87644.0,0.00017112]
[1766703649770,0.01158662,87661.0,87644.0,0.00017112]
[1766703652985,0.00017112,87661.0,87644.0,0.00017112]
[1766703653380,0.0114167,87653.0,87644.0,1.12e-06]
[1766703655685,0.0114161,87657.0,87644.0,1.12e-06]
[1766703656984,0.0114168,87652.0,87644.0,1.12e-06]
[1766703657577,0.00017112,87661.0,87644.0,1.12e-06]
[1766703658074,0.0114169,87651.0,87644.0,1.12e-06]
[1766703658277,0.0114169,87651.0,87636.0,0.09704]
[1766703658489,0.0114171,87649.0,87621.0,0.04097661]
[1766703658693,0.0114216,87615.0,87606.0,0.09704]
[1766703658992,0.011421,87620.0,87606.0,0.13153044]
[1766703660493,0.09704,87649.0,87607.0,0.0114225]
[1766703660793,0.011419,87635.0,87619.0,0.011421]
[1766703661097,0.0114202,87626.0,87596.0,0.011424]
[1766703661289,0.0114209,87620.0,87593.0,0.0022833]
[1766703661589,0.0114184,87640.0,87603.0,0.011423]
[1766703661590,0.0114204,87624.0,87603.0,0.011423]
[1766703661783,0.0114204,87624.0,87604.0,0.15452]
[1766703661979,0.0114207,87622.0,87604.0,0.15452]
[1766703662382,0.011421,87619.0,87604.0,0.15452]
[1766703662582,0.011421,87619.0,87604.0,0.16593]
[1766703663090,0.011421,87619.0,87604.0,0.01141]
[1766703663290,0.00017122,87620.0,87604.0,1e-07]
[1766703663500,0.0114221,87611.0,87604.0,1e-07]
[1766703663686,0.0114221,87611.0,87605.0,0.153]
[1766703663991,0.0114221,87611.0,87604.0,1e-07]
[1766703664200,0.0114224,87609.0,87605.0,0.13852]
[1766703664494,0.0114224,87609.0,87598.0,0.00017122]
[1766703664697,0.0114227,87607.0,87598.0,0.00017122]
[1766703664899,0.0114227,87607.0,87599.0,0.09708]
[1766703665299,0.0114227,87607.0,87598.0,0.05609122]
[1766703665300,0.0114236,87599.0,87598.0,2e-08]
[1766703665498,0.0114211,87619.0,87598.0,2e-08]
[1766703665685,0.09725122,87620.0,87579.0,0.00022837]
[1766703665686,0.0114246,87592.0,87579.0,0.00022837]
[1766703665894,0.011424,87596.0,87580.0,0.15456]
[1766703666506,0.011424,87596.0,87579.0,0.00022837]
[1766703666713,0.0114245,87593.0,87580.0,0.11276]
[1766703667102,8.798e-05,87595.0,87584.0,0.0114254]
[1766703667408,0.0114207,87622.0,87598.0,0.0114236]
[1766703667592,0.0114207,87622.0,87600.0,0.0114233]
[1766703667798,0.09708,87627.0,87601.0,0.09708]
[1766703668293,0.00017122,87623.0,87605.0,0.00017122]
[1766703668492,0.0114216,87615.0,87605.0,0.00017122]
[1766703670299,0.0114216,87615.0,87601.0,0.08025122]
[1766703670499,0.011422,87612.0,87601.0,0.08025122]
[1766703670708,0.0114224,87608.0,87601.0,0.08025122]
[1766703670913,0.0114224,87608.0,87596.0,0.05748]
[1766703671229,0.0114236,87600.0,87592.0,0.04184]
[1766703671415,0.0114236,87600.0,87587.0,0.09708]
[1766703671605,0.0114233,87602.0,87587.0,0.09708]
[1766703671811,0.0114225,87608.0,87591.0,0.0114245]
[1766703672012,0.0114227,87607.0,87587.0,0.09708]
[1766703672209,0.00017122,87606.0,87587.0,0.09708]
[1766703673419,0.00017122,87606.0,87587.0,0.1085051]
[1766703673829,0.00017122,87606.0,87589.0,0.0114248]
[1766703676722,0.0114232,87603.0,87585.0,0.0114254]
[1766703676916,0.0114232,87603.0,87586.0,0.1546]
[1766703677525,0.0114234,87601.0,87586.0,0.1546]
[1766703677919,0.0114237,87599.0,87586.0,0.1546]
[1766703678622,0.011424,87596.0,87586.0,0.1546]
[1766703678828,0.0114246,87592.0,87579.0,0.00022837]
[1766703679311,0.0114249,87589.0,87580.0,0.05752]
[1766703680423,0.12403179,87600.0,87580.0,0.05752]
[1766703680623,0.0114242,87595.0,87580.0,0.05752]
[1766703680823,0.0114245,87593.0,87580.0,0.05752]
[1766703681025,0.0114236,87599.0,87580.0,0.068946]
[1766703681323,0.09712,87600.0,87580.0,0.05752]
[1766703682230,0.011424,87597.0,87580.0,0.068946]
[1766703682827,0.0114242,87595.0,87580.0,0.05752]
[1766703685430,0.0114245,87593.0,87580.0,0.05752]
[1766703687019,0.0114248,87591.0,87580.0,0.05752]
[1766703688328,0.09712,87600.0,87579.0,0.00022837]
[1766703688720,0.22115179,87600.0,87579.0,0.00022837]
[1766703688922,0.0114254,87586.0,87579.0,0.00022837]
[1766703689122,0.011425,87589.0,87579.0,0.00022837]
[1766703689626,0.0114246,87592.0,87579.0,0.00022837]
[1766703692530,0.0114248,87590.0,87579.0,0.00022837]
[1766703695529,0.0114248,87590.0,87558.0,0.06145126]
[1766703695530,0.09712,87589.0,87558.0,0.06145126]
[1766703695731,0.09712,87589.0,87543.0,0.1428048]
[1766703695732,0.12403179,87580.0,87564.0,0.05752]
[1766703695934,0.0114262,87579.0,87562.0,0.05752]
[1766703696136,0.12403179,87580.0,87547.0,0.06145126]
[1766703696137,0.09712,87578.0,87547.0,0.06145126]
[1766703696339,0.09712,87578.0,87535.0,0.00022848]
[1766703696340,0.12403179,87570.0,87535.0,0.00022848]
[1766703696535,1.32e-06,87563.0,87547.0,0.0114304]
[1766703696841,1.32e-06,87563.0,87549.0,0.01143]
[1766703697238,1.32e-06,87563.0,87541.0,0.09712]
[1766703697543,1.32e-06,87563.0,87546.0,0.0114304]
[1766703697943,1.32e-06,87563.0,87549.0,0.0114301]
[1766703698537,0.0114264,87578.0,87547.0,0.05752]
[1766703698746,0.0114264,87578.0,87558.0,0.0114289]
[1766703698937,0.0114264,87578.0,87559.0,0.15464]
[1766703699329,0.0114259,87582.0,87559.0,0.15464]
[1766703699643,0.00017132,87579.0,87562.0,0.01159962]
[1766703699840,0.00017132,87579.0,87562.0,0.00017132]
[1766703700043,0.09712,87602.0,87579.0,0.0114261]
[1766703700343,0.15464,87606.0,87580.0,0.05752]
[1766703700539,0.03656141,87605.0,87580.0,0.068946]
[1766703700739,0.15464,87606.0,87563.0,0.0114283]
[1766703701039,0.00017132,87593.0,87576.0,0.00017132]
[1766703701236,0.00017132,87593.0,87577.0,0.15464]
[1766703702235,0.00017132,87593.0,87576.0,0.00017132]
[1766703702430,0.00017132,87593.0,87577.0,0.15464]
[1766703702635,0.00017132,87593.0,87577.0,0.05752]
[1766703702838,0.00017132,87593.0,87576.0,0.05769132]
[1766703703038,0.0114258,87583.0,87567.0,0.15464]
[1766703703237,0.0114261,87580.0,87567.0,0.05752]
[1766703703441,0.0114265,87577.0,87558.0,0.0114288]
[1766703703641,0.0114269,87574.0,87559.0,0.05752]
[1766703704047,0.00017132,87575.0,87560.0,0.0114286]
[1766703704249,0.05752,87583.0,87559.0,0.05752]
[1766703704750,0.0114254,87585.0,87559.0,0.05752]
[1766703705448,0.00017132,87581.0,87559.0,0.05752]
[1766703706246,0.00017132,87581.0,87564.0,0.0114281]
[1766703706550,0.00017132,87581.0,87560.0,0.0114286]
[1766703708949,0.00017132,87581.0,87559.0,0.05752]
[1766703709648,0.00017132,87581.0,87561.0,0.0114285]
[1766703710448,0.00017132,87581.0,87565.0,0.011428]
[1766703710655,0.00017132,87581.0,87559.0,0.05752]
[1766703710656,0.00017132,87581.0,87566.0,0.05752]
[1766703710963,0.1085445,87592.0,87569.0,0.0114275]
[1766703711256,0.02498024,87591.0,87571.0,0.0114272]
[1766703711442,0.02498024,87590.0,87571.0,0.0114272]
[1766703711642,0.1085445,87592.0,87571.0,0.0114272]
[1766703711846,0.011425,87589.0,87571.0,0.0114272]
[1766703713839,0.011425,87589.0,87570.0,0.09712]
[1766703714353,0.011425,87589.0,87570.0,0.08012]
[1766703714554,0.0114252,87587.0,87570.0,0.08012]
[1766703715654,0.01159612,87590.0,87570.0,0.0915473]
[1766703718255,0.00017132,87590.0,87570.0,0.08012]
[1766703718453,0.0114238,87598.0,87581.0,0.0114259]
[1766703718659,0.0114238,87598.0,87582.0,0.15464]
[1766703719343,0.00017132,87599.0,87582.0,0.1660657]
[1766703719753,0.0114238,87598.0,87582.0,0.15464]
[1766703720355,0.00017132,87599.0,87583.0,0.0114257]
[1766703721355,0.01159502,87599.0,87583.0,0.0114257]
[1766703721555,0.01159502,87599.0,87582.0,0.15464]
[1766703721857,0.01159492,87599.0,87583.0,0.0114256]
[1766703722465,0.01159492,87599.0,87582.0,0.15464]
[1766703722466,0.0114239,87597.0,87582.0,0.15464]
[1766703723159,0.00017132,87599.0,87555.0,0.08183677]
[1766703723364,0.0114255,87585.0,87567.0,0.0114277]
[1766703723665,0.00017132,87599.0,87564.0,0.05752]
[1766703723666,0.0114259,87582.0,87564.0,0.05752]
[1766703723865,0.0114278,87567.0,87551.0,0.0114298]
[1766703724266,0.0114278,87567.0,87552.0,0.15464]
[1766703724762,0.0114285,87562.0,87553.0,0.05752]
[1766703725066,0.0114294,87555.0,87546.0,0.05752]
[1766703725256,0.0114294,87555.0,87539.0,8.288e-05]
[1766703725453,0.00017132,87568.0,87553.0,0.0114296]
[1766703725652,0.00017132,87568.0,87540.0,0.27867179]
[1766703725653,0.0114261,87580.0,87559.0,0.0114287]
[1766703725961,0.05452,87586.0,87554.0,0.15464]
[1766703725962,0.02472357,87579.0,87562.0,0.0114283]
[1766703726160,0.09712,87583.0,87563.0,0.05752]
[1766703726362,0.1085458,87583.0,87564.0,0.0114281]
[1766703726762,0.0114266,87577.0,87565.0,0.00017132]
[1766703726962,0.0114268,87575.0,87565.0,0.00017132]
[1766703728483,0.00017132,87582.0,87565.0,0.00017132]
[1766703729085,0.0114271,87573.0,87565.0,0.00017132]
[1766703729579,0.0114266,87576.0,87565.0,0.00017132]
[1766703729984,0.011427,87574.0,87565.0,0.00017132]
[1766703730888,0.00017132,87582.0,87565.0,0.00017132]
[1766703731179,0.0114267,87576.0,87565.0,0.00017132]
[1766703731384,0.00017132,87582.0,87565.0,0.00017132]
[1766703733184,0.0114268,87575.0,87565.0,0.00017132]
[1766703735086,0.00017132,87582.0,87565.0,0.00017132]
[1766703736086,0.0114269,87574.0,87565.0,0.00017132]
[1766703736988,0.00017132,87582.0,87559.0,0.03079413]
[1766703737185,0.0114267,87576.0,87550.0,0.05752]
[1766703737486,0.0114294,87555.0,87543.0,0.04105884]
[1766703737792,0.0114272,87572.0,87544.0,0.05752]
[1766703737793,0.09716,87566.0,87544.0,0.05752]
[1766703737989,0.00017132,87564.0,87546.0,0.00017132]
[1766703738185,0.011429,87558.0,87546.0,0.00017132]
[1766703738781,0.00017132,87564.0,87546.0,2e-08]
[1766703738976,0.0114298,87552.0,87546.0,2e-08]
[1766703739191,0.0114294,87555.0,87542.0,0.05752]
[1766703740897,0.00017132,87564.0,87542.0,0.05752]
[1766703741083,0.0114299,87551.0,87542.0,0.05752]
[1766703741281,0.00017132,87564.0,87540.0,0.00017132]
[1766703741282,0.011431,87542.0,87540.0,0.00017132]
[1766703741590,0.0114307,87545.0,87536.0,0.05752]
[1766703741798,0.0114307,87545.0,87535.0,0.00022848]
[1766703742179,0.09716,87553.0,87535.0,0.00022848]
[1766703742180,0.01143,87550.0,87535.0,0.00022848]
[1766703742384,0.00011831,87549.0,87535.0,0.00022848]
[1766703743192,0.0114307,87545.0,87535.0,0.00022848]
[1766703743394,0.0114303,87548.0,87535.0,0.00022848]
[1766703744092,0.00011831,87549.0,87535.0,0.00022848]
[1766703745785,0.00011831,87549.0,87536.0,0.0114318]
[1766703746097,0.00011831,87549.0,87535.0,0.00022848]
[1766703746292,0.00011831,87549.0,87535.0,0.01166038]
[1766703746894,0.0114287,87560.0,87536.0,0.15468]
[1766703747093,0.0114287,87560.0,87542.0,0.0114309]
[1766703747489,0.0114283,87563.0,87542.0,0.0114309]
[1766703747791,0.0114277,87568.0,87546.0,0.0114305]
[1766703747993,0.0114275,87570.0,87551.0,0.0114297]
[1766703748186,0.0114275,87570.0,87552.0,0.05752]
[1766703748588,0.011427,87573.0,87553.0,0.0114295]
[1766703748993,0.00017132,87572.0,87555.0,0.0114293]
[1766703749297,0.09716,87582.0,87564.0,0.0114281]
[1766703749488,0.0114258,87582.0,87564.0,0.0114281]
[1766703750281,0.01159712,87582.0,87561.0,0.0689485]
[1766703750486,0.00017132,87582.0,87561.0,0.05752]
[1766703751093,0.0114264,87578.0,87561.0,0.05752]
[1766703755001,0.0114264,87578.0,87559.0,0.0114287]
[1766703755297,0.0114264,87578.0,87560.0,0.15468]
[1766703759202,0.0114264,87578.0,87561.0,0.0114285]
[1766703759400,0.011426,87581.0,87561.0,0.0114285]
[1766703760992,0.00017132,87582.0,87564.0,0.0114281]
[1766703761901,0.00017132,87582.0,87561.0,0.0114285]
[1766703761902,0.011426,87581.0,87561.0,0.0114285]
[1766703762303,0.0114263,87579.0,87561.0,0.0114285]
[1766703762601,0.00017132,87582.0,87554.0,0.00017132]
[1766703762795,0.0114286,87561.0,87554.0,0.00017132]
[1766703763503,0.05752,87570.0,87554.0,0.00017132]
[1766703763699,0.05752,87570.0,87554.0,2e-08]
[1766703764003,0.0114303,87548.0,87535.0,0.09738848]
[1766703764195,0.0114272,87572.0,87536.0,0.05752]
[1766703764196,0.15468,87558.0,87536.0,0.05752]
[1766703764396,0.09716,87557.0,87541.0,0.0114311]
[1766703764603,0.05752,87563.0,87547.0,0.0114303]
[1766703764803,0.15468,87571.0,87553.0,0.0114296]
[1766703765004,0.15468,87577.0,87548.0,0.05752]
[1766703765311,0.0114272,87572.0,87553.0,0.0114295]
[1766703766103,0.0114274,87570.0,87549.0,0.01143]
[1766703766304,0.0114274,87570.0,87552.0,0.0114296]
[1766703766502,0.0114274,87570.0,87548.0,0.0689502]
[1766703766704,0.00017132,87571.0,87553.0,0.0114295]
[1766703767005,0.00017132,87571.0,87548.0,0.0114302]
[1766703767006,0.0114274,87570.0,87548.0,0.0114302]
[1766703767195,1.32e-06,87571.0,87546.0,0.00017132]
[1766703767397,1.32e-06,87571.0,87560.0,0.0114286]
[1766703767703,0.0683058,87582.0,87560.0,0.0114286]
[1766703767895,0.0114264,87578.0,87555.0,0.0114292]
[1766703768501,0.00017132,87575.0,87555.0,0.0114292]
[1766703769006,0.09716,87574.0,87555.0,0.0114292]
[1766703770406,0.09716,87574.0,87558.0,0.0114289]
[1766703770796,0.09716,87574.0,87555.0,0.0114293]
[1766703771403,0.0114273,87571.0,87551.0,0.0114298]
[1766703771599,0.05752,87570.0,87546.0,0.00017132]
[1766703771801,0.0114287,87560.0,87546.0,0.00017132]
[1766703772108,0.15468,87559.0,87546.0,0.00017132]
[1766703772503,0.15468,87559.0,87535.0,0.00022848]
[1766703772900,0.06105174,87591.0,87535.0,0.00022848]
[1766703773098,1.36928,87590.0,87535.0,0.00022848]
[1766703773295,0.0114294,87555.0,87535.0,0.00022848]
[1766703773503,0.15485132,87554.0,87537.0,0.0114316]
[1766703775300,0.0114296,87553.0,87536.0,0.00017132]
[1766703775697,0.15485132,87554.0,87536.0,0.00017132]
[1766703775903,0.0114311,87542.0,87535.0,1e-07]
[1766703776103,0.15485132,87554.0,87534.0,0.05]
[1766703776104,0.15468,87541.0,87534.0,0.05]
[1766703776303,0.09716,87540.0,87534.0,0.05]
[1766703778910,0.09716,87540.0,87528.0,0.00878217]
[1766703779207,0.0114316,87538.0,87528.0,7e-08]
[1766703779409,0.05752,87537.0,87528.0,7e-08]
[1766703779607,0.09716,87536.0,87528.0,7e-08]
[1766703781008,0.09716,87536.0,87518.0,0.05249294]
[1766703781204,0.09716,87536.0,87521.0,0.0114337]
[1766703781404,0.09716,87536.0,87518.0,0.04105884]
[1766703781601,0.09716,87541.0,87534.0,0.011432]
[1766703781806,0.2005,87571.0,87545.0,0.0114305]
[1766703781807,0.09716,87565.0,87545.0,0.0114305]
[1766703782110,0.00017132,87564.0,87535.0,0.09716]
[1766703782315,0.05769132,87564.0,87537.0,0.04105884]
[1766703782516,0.05769132,87564.0,87556.0,0.0114291]
[1766703782713,0.09716,87584.0,87548.0,0.0114302]
[1766703782908,0.24296,87609.0,87579.0,0.0114262]
[1766703782909,0.0994433,87593.0,87579.0,0.0114262]
[1766703783110,0.15090072,87622.0,87567.0,0.09716]
[1766703783422,0.15090072,87622.0,87565.0,0.05752]
[1766703783423,0.0114233,87601.0,87568.0,0.12948]
[1766703783606,0.00017132,87593.0,87568.0,0.09716]
[1766703783807,0.1661046,87592.0,87568.0,0.09716]
[1766703784006,0.00017132,87593.0,87572.0,0.0114271]
[1766703784219,0.05752,87591.0,87562.0,0.09857884]
[1766703784418,0.05752,87591.0,87563.0,0.04105884]
[1766703784918,0.00017132,87593.0,87563.0,0.04105884]
[1766703784919,0.00017132,87593.0,87574.0,0.0114268]
[1766703785112,0.0232,87592.0,87579.0,0.0114261]
[1766703785307,0.00017132,87593.0,87579.0,0.0114261]
[1766703785819,0.00017132,87593.0,87582.0,0.0114258]
[1766703786020,0.05752,87597.0,87578.0,0.0114263]
[1766703786320,0.05752,87597.0,87574.0,0.0114268]
[1766703786713,0.01,90582.0,87581.0,0.0114259]
[1766703786714,0.0114229,87605.0,87581.0,0.0114259]
[1766703786911,0.15468,87604.0,87581.0,0.0114259]
[1766703787110,0.00017132,87601.0,87584.0,0.00017132]
[1766703787315,0.0114222,87610.0,87587.0,0.0114251]
[1766703787510,0.0114222,87610.0,87584.0,0.00017132]
[1766703787511,0.0114225,87608.0,87584.0,0.00017132]
[1766703787710,0.05752,87609.0,87584.0,0.00017132]
[1766703787913,0.0114237,87599.0,87584.0,0.00017132]
[1766703788623,0.0114244,87593.0,87573.0,0.05752]
[1766703788818,0.0114248,87590.0,87573.0,0.05752]
[1766703789223,0.0114244,87594.0,87573.0,0.05752]
[1766703789621,0.09716,87595.0,87573.0,0.05752]
[1766703789922,0.0114265,87577.0,87575.0,2e-08]
[1766703790308,0.0114261,87580.0,87575.0,2e-08]
[1766703790717,0.0114261,87580.0,87557.0,0.0114291]
[1766703790932,0.15468,87579.0,87557.0,0.0114291]
[1766703791314,0.0114252,87587.0,87551.0,0.05752]
[1766703791517,0.0114252,87587.0,87565.0,0.011428]
[1766703791824,0.06105174,87618.0,87565.0,0.05752]
[1766703792013,0.011423,87604.0,87566.0,0.0114279]
[1766703792208,0.166103,87604.0,87580.0,0.011426]
[1766703792810,0.01159462,87601.0,87583.0,0.00017122]
[1766703794123,0.00017122,87601.0,87583.0,0.00017122]
[1766703795216,0.00017122,87601.0,87588.0,0.0114249]
[1766703795417,0.09712,87617.0,87599.0,0.0114236]
[1766703795620,0.09712,87617.0,87589.0,0.09712]
[1766703795621,0.09712,87617.0,87595.0,0.011424]
[1766703795928,0.0114211,87619.0,87595.0,0.011424]
[1766703796228,0.0114214,87616.0,87591.0,0.0114246]
[1766703796726,0.00017122,87612.0,87595.0,0.00017122]
[1766703797122,0.0114226,87607.0,87588.0,0.09712]
[1766703797325,0.00017122,87612.0,87588.0,0.09712]
[1766703797326,0.0114232,87603.0,87588.0,0.09712]
[1766703797513,0.0114235,87601.0,87588.0,0.09712]
[1766703797717,0.15464,87608.0,87587.0,0.011425]
[1766703798014,0.15464,87608.0,87589.0,0.00017122]
[1766703798218,0.15464,87608.0,87591.0,0.0114245]
[1766703798413,0.01159312,87612.0,87591.0,0.0114245]
[1766703798823,0.0114223,87610.0,87591.0,0.0114245]
[1766703799425,0.00017122,87612.0,87591.0,0.0114245]
[1766703799621,0.00017122,87612.0,87589.0,0.00017122]
[1766703799824,0.00017122,87612.0,87600.0,0.0114234]
[1766703800437,0.0035732,87646.0,87594.0,0.09712]
[1766703800731,0.0035732,87646.0,87617.0,0.12402322]
[1766703800915,0.0035732,87646.0,87618.0,0.1546]
[1766703801226,0.0114184,87640.0,87611.0,0.09712]
[1766703801431,0.01159032,87634.0,87617.0,0.00017122]
[1766703801732,0.00017122,87634.0,87617.0,0.00017122]
[1766703802129,0.00017122,87634.0,87620.0,0.0114208]
[1766703802828,0.00017122,87634.0,87617.0,0.00017122]
[1766703803024,0.00017122,87634.0,87618.0,0.0114211]
[1766703803230,0.00017122,87634.0,87617.0,0.00017122]
[1766703804520,0.00017122,87634.0,87617.0,1.22e-06]